bitfinex/quotes_ETHUSD_20250519
["timestamp","ask_amount","ask_price","bid_price","bid_amount"]
[1747639186248,1.3441,2406.5,2406.1,10.477]
[1747639186431,1.3441,2406.5,2406.1,0.05]
[1747639187010,4.15558684,2406.4,2406.1,0.05]
[1747639187210,4.15534386,2406.6,2406.1,4.20603006]
[1747639187543,4.15556322,2406.5,2406.1,0.05]
[1747639187708,4.57104827,2406.5,2406.1,0.05]
[1747639187910,1.59161677,2407.0,2406.1,0.05]
[1747639188243,4.15516803,2406.7,2406.3,4.155741]
[1747639188653,4.15516803,2406.7,2406.3,4.15574496]
[1747639188826,4.15476083,2406.9,2406.4,4.15551218]
[1747639189018,4.15459901,2407.0,2406.4,4.15551218]
[1747639189347,4.15480236,2406.9,2406.4,4.15551687]
[1747639189566,4.98573957,2406.9,2406.4,4.15551687]
[1747639189713,0.83093721,2406.9,2406.1,0.05]
[1747639190061,4.15452237,2407.1,2406.6,4.15519898]
[1747639190354,4.15452237,2407.1,2406.6,4.15512296]
[1747639190523,5.56691387,2407.6,2407.0,4.1544386]
[1747639190721,4.15387403,2407.4,2407.0,4.1544386]
[1747639190928,5.12595282,2407.4,2407.0,4.1544386]
[1747639191251,0.97207879,2407.4,2407.0,10.402]
[1747639191447,5.62096203,2408.2,2407.7,4.15325058]
[1747639191749,4.15272801,2408.1,2407.7,4.15333548]
[1747639192148,1.4684,2408.2,2407.7,4.15333548]
[1747639192323,5.58766876,2408.5,2408.0,4.15274919]
[1747639192524,1.4356,2408.5,2407.8,1.408]
[1747639192710,1.4356,2408.5,2408.1,4.15255473]
[1747639192915,4.15186444,2408.6,2408.1,4.15255473]
[1747639192916,4.15186444,2408.6,2408.1,14.55455473]
[1747639193128,4.15162709,2408.7,2408.2,4.15239927]
[1747639193329,1.4356,2408.8,2408.1,10.402]
[1747639193537,5.93462604,2408.8,2408.3,4.1521449]
[1747639193854,4.20137277,2408.9,2408.3,4.1521449]
[1747639193855,1.36115878,2408.7,2408.4,4.15204381]
[1747639194063,0.3475589,2408.7,2408.4,4.15204381]
[1747639194560,0.3475589,2408.7,2408.3,4.15220953]
[1747639194859,4.15197934,2408.5,2408.0,4.15274937]
[1747639195060,4.15186012,2408.6,2408.2,10.399]
[1747639195281,0.04826767,2408.5,2408.2,10.399]
[1747639195564,4.15246787,2408.3,2408.0,10.399]
[1747639195861,4.15181554,2408.6,2408.1,4.15256304]
[1747639196155,5.16139689,2408.6,2408.1,4.15256304]
[1747639196360,0.3475589,2408.7,2408.0,10.399]
[1747639196527,0.3475589,2408.7,2408.3,4.1522479]
[1747639196949,0.05,2408.9,2408.1,4.15265146]
[1747639197259,0.05,2408.9,2408.0,10.399]
[1747639197260,4.20129258,2408.9,2408.4,4.1520281]
[1747639197438,0.05,2408.9,2408.5,14.54993987]
[1747639197639,5.18098003,2408.9,2408.5,10.398]
[1747639197960,4.15145722,2408.8,2408.5,10.398]
[1747639198257,1.02969303,2408.9,2408.5,14.54983012]
[1747639199158,1.02969303,2408.9,2408.5,10.398]
[1747639199364,4.15154218,2408.8,2408.5,10.398]
[1747639199522,4.15186971,2408.6,2408.1,10.398]
[1747639199726,4.15197857,2408.5,2408.1,10.398]
[1747639199952,4.15161705,2408.7,2407.8,0.28953433]
[1747639200155,4.15299638,2407.9,2407.8,0.28953433]
[1747639200563,4.15334136,2407.7,2407.6,0.38606745]
[1747639200735,10.6270678,2407.7,2407.6,0.38606745]
[1747639200936,11.97750013,2407.7,2407.6,0.14477529]
[1747639201137,4.15437663,2407.1,2407.0,0.77211389]
[1747639201336,5.55307663,2407.1,2407.0,0.77211389]
[1747639201872,5.55307663,2407.1,2406.1,0.05]
[1747639201873,4.15593051,2406.2,2406.1,0.05]
[1747639202072,4.15524115,2406.6,2406.1,0.39694427]
[1747639202262,1.3545,2406.9,2406.2,0.34692985]
[1747639202645,4.15550058,2406.5,2406.2,0.34692985]
[1747639202845,1.4488,2407.3,2406.3,1.4431]
[1747639203074,1.4488,2407.3,2406.2,0.34692985]
[1747639203075,4.1557578,2406.3,2406.2,0.34692985]
[1747639203277,4.15584457,2406.3,2406.1,0.05]
[1747639203636,4.15562648,2406.4,2406.1,0.05]
[1747639204086,5.60418567,2407.1,2406.1,4.20594298]
[1747639204484,1.4498,2407.1,2406.1,0.05]
[1747639204684,14.53404241,2407.3,2406.1,0.05]
[1747639204685,5.58915427,2406.6,2406.1,0.05]
[1747639204853,4.15592357,2406.3,2406.1,0.05]
[1747639205050,4.15593051,2406.2,2406.1,0.05]
[1747639205657,5.63363051,2406.2,2406.1,0.05]
[1747639207738,5.68189818,2406.2,2406.1,0.05]
[1747639207942,5.63363051,2406.2,2406.1,0.05]
[1747639208172,7.65048592,2406.2,2406.1,0.05]
[1747639208338,5.63363051,2406.2,2406.1,0.05]
[1747639208944,4.1576584,2405.2,2405.1,0.05]
[1747639209176,4.20592607,2405.2,2405.1,0.05]
[1747639209487,4.15754628,2405.3,2405.1,0.05]
[1747639209668,4.15713988,2405.5,2405.1,0.05]
[1747639209980,4.1572354,2405.5,2405.1,0.05]
[1747639210185,4.1576584,2405.2,2405.1,0.05]
[1747639210759,4.71260887,2405.5,2405.1,0.05]
[1747639211075,4.1576584,2405.2,2405.1,0.05]
[1747639211583,4.71264072,2405.5,2405.1,0.05]
[1747639211584,0.55546399,2405.5,2405.1,0.05]
[1747639211887,1.3975,2405.6,2405.1,0.05]
[1747639212187,4.15723744,2405.5,2405.1,0.05]
[1747639212484,0.3475589,2405.4,2405.1,0.05]
[1747639212855,4.1576584,2405.2,2405.1,0.05]
[1747639213051,4.5052173,2405.2,2405.1,0.05]
[1747639213278,6.55698993,2405.2,2405.1,0.05]
[1747639213482,4.5052173,2405.2,2405.1,0.05]
[1747639217115,0.3475589,2405.2,2405.1,4.20783127]
[1747639217420,0.3475589,2405.2,2405.1,14.62040665]
[1747639217590,0.3475589,2405.2,2405.1,14.57883127]
[1747639217913,0.3475589,2405.2,2405.1,0.05]
[1747639218279,4.5052173,2405.2,2405.1,0.05]
[1747639218476,5.37148947,2405.2,2405.1,0.05]
[1747639219929,10.92216153,2405.2,2405.1,0.05]
[1747639220084,10.87389386,2405.2,2405.1,0.05]
[1747639220285,6.73278947,2405.2,2405.1,0.05]
[1747639220486,2.57513107,2405.2,2405.1,0.05]
[1747639220692,5.8665173,2405.2,2405.1,0.05]
[1747639221112,5.91478497,2405.2,2405.1,0.05]
[1747639221420,5.8665173,2405.2,2405.1,0.05]
[1747639222031,16.2335173,2405.2,2405.1,0.05]
[1747639222321,0.3475589,2405.2,2405.1,0.05]
[1747639223512,0.3475589,2405.2,2405.1,4.20783127]
[1747639223745,0.3475589,2405.2,2405.1,16.03993127]
[1747639224053,0.3475589,2405.2,2405.1,23.36296927]
[1747639224214,0.3475589,2405.2,2405.1,5.66993127]
[1747639224415,0.3475589,2405.2,2405.1,26.40493127]
[1747639224946,0.3475589,2405.2,2405.1,5.66993127]
[1747639225148,0.3475589,2405.2,2405.1,1.5121]
[1747639225357,0.3475589,2405.2,2405.1,5.66993127]
[1747639226448,0.3475589,2405.2,2405.1,11.8821]
[1747639226654,0.3475589,2405.2,2405.1,5.66993127]
[1747639226957,0.3475589,2405.2,2405.1,0.05]
[1747639227943,0.3475589,2405.2,2405.1,4.20783127]
[1747639229259,0.3475589,2405.2,2405.1,5.60420423]
[1747639229467,0.3475589,2405.2,2405.1,5.56263127]
[1747639229670,14.2248663,2406.9,2406.5,4.15528896]
[1747639229671,1.3904,2406.8,2406.5,4.15528896]
[1747639229958,4.15515181,2406.7,2406.2,16.00007684]
[1747639230167,1.56150747,2406.8,2406.2,11.8442]
[1747639230379,1.3617,2407.1,2406.2,11.8442]
[1747639230514,1.3617,2407.1,2406.4,4.15556901]
[1747639230718,1.17177,2407.1,2406.5,0.04155312]
[1747639231045,2.28435438,2407.7,2406.7,1.4409]
[1747639231248,4.15316886,2407.8,2406.7,19.3919]
[1747639231573,14.54437206,2407.7,2406.8,10.369]
[1747639231855,4.155329,2406.6,2406.3,10.369]
[1747639232012,1.3624,2406.8,2406.0,33.88128892]
[1747639232209,1.3624,2406.8,2406.1,4.15609834]
[1747639232210,1.91409582,2406.8,2406.1,4.15609834]
[1747639232441,1.3624,2406.8,2406.1,14.52509834]
[1747639232649,4.15544514,2406.5,2406.1,10.369]
[1747639232810,4.15563751,2406.4,2406.0,19.3561]
[1747639233024,4.15529093,2406.6,2406.0,28.319]
[1747639233224,4.15549446,2406.5,2406.0,32.47527254]
[1747639233457,4.15514832,2406.7,2406.1,4.15610323]
[1747639233624,4.15516303,2406.7,2406.1,4.15610323]
[1747639233826,4.15523975,2406.6,2406.1,4.15596309]
[1747639234044,4.15531832,2406.6,2406.1,4.15596176]
[1747639234455,0.96729088,2406.6,2406.2,4.15592902]
[1747639234854,5.12253902,2406.6,2406.1,4.15601464]
[1747639235076,4.15542833,2406.5,2406.0,32.47518775]
[1747639235270,4.15563448,2406.4,2406.0,28.319]
[1747639235443,4.15595215,2406.2,2406.0,17.951]
[1747639235632,0.42042198,2406.2,2406.0,17.951]
[1747639235969,4.15586192,2406.3,2406.0,17.951]
[1747639236131,4.1556422,2406.4,2406.0,17.951]
[1747639236331,10.07,2406.7,2406.0,17.951]
[1747639236565,4.15585981,2406.3,2406.0,17.951]
[1747639236883,10.07,2406.7,2406.1,4.15610323]
[1747639237057,10.07,2406.7,2406.0,17.951]
[1747639237375,4.15532883,2406.6,2406.0,22.10722037]
[1747639237534,4.15532883,2406.6,2406.1,14.52298394]
[1747639237730,4.15523975,2406.6,2406.0,17.951]
[1747639237931,4.1555319,2406.5,2406.1,10.367]
[1747639238131,14.2251322,2406.7,2406.1,14.52305044]
[1747639238132,4.15532624,2406.6,2406.1,14.52305044]
[1747639238329,1.83804584,2406.6,2406.2,4.15592553]
[1747639238564,5.99329867,2406.6,2406.2,4.15592553]
[1747639238872,5.99329867,2406.6,2406.1,14.52299062]
[1747639239166,1.83804584,2406.6,2406.2,4.15592479]
[1747639239367,10.07,2406.7,2406.2,4.15592479]
[1747639239368,10.07,2406.7,2406.2,0.04155742]
[1747639239575,1.3701,2407.2,2406.6,4.15523975]
[1747639239748,4.15445379,2407.1,2406.6,4.15523975]
[1747639240393,4.15457236,2407.0,2406.6,4.15523975]
[1747639240534,5.12246762,2407.0,2406.6,4.15523975]
[1747639240938,5.12246762,2407.0,2406.2,4.15591978]
[1747639240939,0.96789526,2407.0,2406.2,4.15585096]
[1747639241159,0.96789526,2407.0,2406.3,14.52175668]
[1747639241361,4.15514002,2406.7,2406.3,10.366]
[1747639241569,4.98614374,2406.7,2406.3,10.366]
[1747639241789,0.04826767,2406.6,2406.0,19.3417]
[1747639242072,14.47810439,2406.5,2405.5,10.75096505]
[1747639242273,4.1557578,2406.3,2405.5,10.366]
[1747639242497,4.15691214,2405.7,2405.3,19.3152]
[1747639242662,4.15691214,2405.7,2405.4,10.366]
[1747639242858,4.15614563,2406.1,2405.4,10.366]
[1747639243169,4.15594637,2406.2,2405.6,4.15684252]
[1747639243369,4.15644434,2406.0,2405.5,4.15704457]
[1747639243587,4.15651918,2405.9,2405.6,10.366]
[1747639243963,4.15618229,2406.1,2405.5,4.15707273]
[1747639243964,4.15636233,2406.0,2405.5,4.15707273]
[1747639244297,4.15636233,2406.0,2405.5,14.52307273]
[1747639244464,4.15636233,2406.0,2405.5,14.52299311]
[1747639245299,4.15618938,2406.1,2405.5,14.52308827]
[1747639245479,4.15584551,2406.3,2405.5,10.366]
[1747639245663,1.455,2406.4,2405.5,10.366]
[1747639245867,4.15585316,2406.3,2405.8,4.15653399]
[1747639246177,0.97664675,2406.2,2405.8,4.15653399]
[1747639246499,1.4762,2406.9,2405.8,10.332]
[1747639246801,4.1548984,2406.8,2405.9,1.3743]
[1747639247003,5.63099709,2406.9,2406.3,4.15566166]
[1747639247295,4.15541195,2406.6,2406.0,4.15619384]
[1747639247481,4.15534113,2406.6,2406.0,4.15612301]
[1747639247683,1.4762,2406.9,2406.5,4.15524778]
[1747639248059,1.4762,2406.9,2406.3,10.366]
[1747639248262,5.63102002,2406.9,2406.4,4.15549503]
[1747639248986,4.1549027,2406.8,2406.4,4.15549503]
[1747639250015,1.374,2407.3,2406.3,10.366]
[1747639250162,1.374,2407.6,2407.2,4.15406472]
[1747639250367,0.55274174,2407.5,2407.1,14.48027636]
[1747639250563,4.15420405,2407.2,2407.1,10.326]
[1747639250873,4.15420405,2407.2,2406.7,4.1549688]
[1747639251074,4.1543903,2407.1,2406.7,10.326]
[1747639251300,0.83085944,2407.1,2406.8,4.15487244]
[1747639251486,0.83085944,2407.1,2406.7,14.48105381]
[1747639251487,4.15410538,2407.3,2406.9,4.15468987]
[1747639251692,4.15422349,2407.2,2406.7,10.326]
[1747639251999,4.15422349,2407.2,2406.7,14.48095786]
[1747639252598,0.55274174,2407.5,2406.7,10.326]
[1747639252802,4.15452992,2407.1,2406.7,10.326]
[1747639253003,0.83087903,2407.1,2406.9,4.15469978]
[1747639253193,4.15393713,2407.4,2406.8,4.15477323]
[1747639253390,0.55274174,2407.5,2406.7,10.326]
[1747639253590,11.444,2407.6,2407.2,4.15404273]
[1747639253792,1.471,2407.9,2407.4,4.15373923]
[1747639253980,0.05,2407.9,2407.8,4.15316886]
[1747639254298,0.05,2407.9,2407.5,5.61111299]
[1747639254498,0.05,2407.9,2407.6,4.15349075]
[1747639254902,0.05,2407.9,2407.5,1.4575]
[1747639255102,4.20307045,2407.9,2407.4,10.325]
[1747639255419,0.42030705,2407.8,2407.5,4.15368639]
[1747639256408,0.05,2407.9,2407.7,4.15323768]
[1747639256610,0.05,2407.9,2407.6,4.15347548]
[1747639257002,0.05,2407.9,2407.6,4.15351143]
[1747639257376,0.05,2407.9,2407.5,4.15358706]
[1747639257577,0.05,2407.9,2407.4,14.79060772]
[1747639257806,5.5492209,2407.8,2407.4,10.324]
[1747639258110,4.15349264,2407.7,2407.4,10.324]
[1747639258609,4.15364934,2407.6,2407.4,10.324]
[1747639258774,4.1536145,2407.6,2407.4,10.324]
[1747639258977,0.05,2407.9,2407.6,4.15338324]
[1747639259207,0.05,2407.9,2407.3,14.47795721]
[1747639259412,4.15336042,2407.7,2407.3,10.324]
[1747639259608,4.15363612,2407.6,2407.3,10.324]
[1747639259906,1.42516767,2407.5,2406.8,1.4585]
[1747639260106,4.15357342,2407.6,2406.8,0.31685798]
[1747639260279,4.15409842,2407.3,2406.6,10.70796505]
[1747639260475,4.20160903,2407.7,2406.6,10.70796505]
[1747639260476,4.1543419,2407.2,2406.6,10.70796505]
[1747639260822,4.15456976,2407.0,2406.7,10.55410165]
[1747639261025,1.3851,2407.2,2406.8,4.15478001]
[1747639261318,4.15439304,2407.1,2406.7,14.70907482]
[1747639261625,4.15480596,2406.9,2406.7,0.23110165]
[1747639261908,4.15489446,2406.8,2406.7,0.23110165]
[1747639262291,4.20316213,2406.8,2406.7,0.23110165]
[1747639262505,5.67546213,2406.8,2406.7,0.23110165]
[1747639262709,4.15523975,2406.6,2405.7,4.15676498]
[1747639262925,4.15523975,2406.6,2405.6,32.417906]
[1747639262926,4.15583929,2406.3,2405.8,4.15654717]
[1747639263089,4.15562822,2406.4,2405.9,4.15641987]
[1747639263090,4.15568291,2406.4,2405.9,4.15641987]
[1747639263284,4.15577902,2406.3,2405.8,4.15655491]
[1747639263708,4.15535079,2406.6,2406.1,4.15608852]
[1747639263913,4.15530697,2406.6,2406.1,4.1560817]
[1747639264096,1.4723,2406.8,2406.5,4.15533316]
[1747639264306,4.15455723,2407.0,2406.5,4.15529399]
[1747639264831,4.1546229,2407.0,2406.1,11.7175]
[1747639264995,4.1547829,2406.9,2406.4,4.15547064]
[1747639265328,4.15506059,2406.8,2406.3,4.15571306]
[1747639265482,1.4089,2407.2,2406.4,10.324]
[1747639265684,1.4089,2407.5,2406.8,4.15480911]
[1747639265919,4.15407871,2407.3,2406.8,4.15480911]
[1747639266223,5.56267915,2407.5,2407.0,4.15451755]
[1747639266530,1.4089,2407.5,2406.9,10.324]
[1747639266685,4.15479807,2406.9,2406.5,29.635]
[1747639266891,4.15479807,2406.9,2406.5,33.79039438]
[1747639267110,4.15479807,2406.9,2406.5,29.635]
[1747639267310,4.15477796,2406.9,2406.5,29.635]
[1747639267512,4.15463662,2407.0,2406.5,33.79039142]
[1747639267686,4.15473049,2406.9,2406.5,33.79039142]
[1747639268186,4.15464917,2407.0,2406.5,33.79039142]
[1747639268388,4.15397525,2407.4,2406.9,4.154633]
[1747639268589,4.15417826,2407.3,2406.8,4.15482229]
[1747639268795,4.15487623,2406.9,2406.5,19.311]
[1747639268997,4.15500588,2406.8,2406.6,10.324]
[1747639269318,1.4215,2407.2,2406.5,17.94]
[1747639269489,4.15523975,2406.6,2406.5,17.94]
[1747639269682,4.15518951,2406.7,2406.4,10.324]
[1747639269882,4.15526703,2406.6,2406.4,10.324]
[1747639270101,0.55755315,2407.1,2406.2,1.4123]
[1747639270324,4.15549945,2406.5,2406.2,10.324]
[1747639270687,0.83106271,2406.5,2405.9,1.4123]
[1747639270889,4.15612297,2406.1,2405.8,10.61327272]
[1747639271091,1.435,2406.2,2405.8,0.28927272]
[1747639271290,4.15637346,2406.0,2405.8,0.28927272]
[1747639271749,4.15627597,2406.0,2405.8,0.28927272]
[1747639272131,4.15644873,2405.9,2405.8,0.28927272]
[1747639272450,0.6664924,2405.9,2405.4,17.94]
[1747639272594,4.15673352,2405.8,2405.4,28.265]
[1747639272788,4.15610323,2406.1,2405.5,4.15704125]
[1747639273026,1.435,2406.2,2405.4,28.265]
[1747639273417,4.15713988,2405.5,2405.4,17.94]
[1747639273728,4.15697512,2405.6,2405.3,1.3556]
[1747639274407,4.15686979,2405.7,2405.3,1.3556]
[1747639274606,1.435,2406.2,2405.6,4.15687028]
[1747639274925,1.435,2406.2,2405.3,1.3556]
[1747639275322,4.15700925,2405.6,2405.4,10.326]
[1747639275497,4.15708412,2405.6,2405.4,10.326]
[1747639276426,4.15689226,2405.7,2405.4,10.326]
[1747639276844,1.435,2406.2,2405.4,10.326]
[1747639277010,4.15624662,2406.1,2405.5,5.64115428]
[1747639277328,4.15640418,2406.0,2405.5,1.4841]
[1747639277527,4.15640418,2406.0,2405.5,5.6412286]
[1747639277729,4.15640418,2406.0,2405.5,1.4841]
[1747639278036,4.15637657,2406.0,2405.5,5.64122458]
[1747639278606,4.15648219,2405.9,2405.4,10.326]
[1747639278927,4.15662149,2405.8,2405.4,10.326]
[1747639279132,4.15662149,2405.8,2405.4,14.4832973]
[1747639279534,1.435,2406.2,2405.5,4.15701126]
[1747639279714,1.435,2406.2,2405.4,10.326]
[1747639279917,4.15610323,2406.1,2405.4,10.326]
[1747639280147,4.15686255,2405.7,2405.2,15.84776246]
[1747639280822,4.15699892,2405.6,2405.2,15.84776246]
[1747639281028,4.15699892,2405.6,2405.2,11.6902]
[1747639281229,4.15699892,2405.6,2405.2,15.84783124]
[1747639281550,4.15699892,2405.6,2405.2,11.6902]
[1747639281712,4.15699892,2405.6,2405.2,15.84785351]
[1747639282973,4.7154107,2406.0,2405.2,10.282]
[1747639282974,0.04826767,2405.5,2405.2,10.282]
[1747639283116,4.1576584,2405.2,2405.1,0.05]
[1747639283311,4.20592607,2405.2,2405.1,0.05]
[1747639283519,5.54712607,2405.2,2405.1,0.05]
[1747639283831,22.37750206,2405.2,2405.1,0.05]
[1747639284040,22.32923439,2405.2,2405.1,0.05]
[1747639285253,30.87923439,2405.2,2405.1,0.05]
[1747639285548,4.15938773,2404.2,2404.1,0.05]
[1747639285715,15.86501222,2404.4,2404.1,0.05]
[1747639285910,18.47981344,2404.4,2404.1,0.05]
[1747639286153,4.15927625,2404.3,2404.1,0.05]
[1747639286555,4.15938773,2404.2,2404.1,0.05]
[1747639288843,14.43038773,2404.2,2404.1,0.05]
[1747639289343,14.42938773,2404.2,2404.1,0.05]
[1747639289662,16.43144413,2404.2,2404.1,0.05]
[1747639290774,10.269,2404.3,2404.1,0.05]
[1747639291278,4.15929108,2404.3,2404.1,0.05]
[1747639291635,15.86002726,2404.4,2404.1,0.05]
[1747639292069,1.4558,2404.8,2404.2,4.15929629]
[1747639292270,1.4558,2404.8,2404.3,4.15913471]
[1747639292458,1.4558,2404.8,2404.4,4.15901208]
[1747639292661,2.4122716,2405.2,2404.5,1.4205]
[1747639292982,4.15854656,2404.7,2404.2,5.50574118]
[1747639293299,14.42398352,2405.1,2404.6,4.15862532]
[1747639293430,10.266,2405.1,2404.2,1.3465]
[1747639293634,4.15827143,2404.9,2404.3,4.15919688]
[1747639293830,1.44242714,2404.9,2404.2,1.3465]
[1747639294073,4.15914411,2404.4,2404.1,0.05]
[1747639294284,0.04826767,2404.4,2404.1,0.05]
[1747639294483,4.15938773,2404.2,2404.1,0.05]
[1747639295182,4.15892574,2404.5,2404.1,0.05]
[1747639295183,1.4173,2404.7,2404.1,0.05]
[1747639295352,4.15921808,2404.3,2404.1,0.05]
[1747639295553,4.15938773,2404.2,2404.1,0.05]
[1747639297154,4.15928453,2404.3,2404.1,0.05]
[1747639298202,4.15938773,2404.2,2404.1,0.05]
[1747639298596,5.5245345,2404.5,2404.1,0.05]
[1747639298799,4.15928985,2404.3,2404.1,0.05]
[1747639299295,4.15938773,2404.2,2404.1,0.05]
[1747639300369,10.255,2404.4,2404.1,0.05]
[1747639300370,4.15917723,2404.4,2404.1,0.05]
[1747639300684,5.30749563,2404.6,2404.1,4.20948729]
[1747639300857,14.22843122,2404.8,2404.3,4.15910539]
[1747639301058,13.07820916,2404.8,2404.3,4.15910539]
[1747639301272,17.23668029,2404.8,2404.3,4.15910539]
[1747639301598,5.6332179,2405.1,2404.2,1.3751]
[1747639301816,4.15860394,2404.7,2404.2,1.3751]
[1747639302115,4.15801554,2405.0,2404.2,5.53442002]
[1747639302314,4.1586053,2404.7,2404.2,1.3751]
[1747639302606,4.15869968,2404.6,2404.2,5.53440993]
[1747639302972,4.57449484,2404.7,2404.2,5.53440993]
[1747639303169,4.15815483,2405.0,2404.5,4.15878562]
[1747639303391,4.15869221,2404.7,2404.2,5.53438605]
[1747639303597,0.04826767,2404.9,2404.2,1.3751]
[1747639303781,4.15817705,2404.9,2404.1,10.34]
[1747639303991,4.15852289,2404.7,2404.1,10.34]
[1747639304199,4.15932088,2404.3,2404.1,10.34]
[1747639304370,1.4479,2404.6,2404.1,10.34]
[1747639304371,4.15938773,2404.2,2404.1,0.05]
[1747639304574,4.15917799,2404.4,2404.1,0.05]
[1747639304575,4.15931342,2404.3,2404.1,0.05]
[1747639304877,4.99116256,2404.3,2404.1,0.05]
[1747639305533,1.4479,2404.6,2404.1,0.05]
[1747639305710,4.15938773,2404.2,2404.1,0.05]
[1747639306687,4.15931555,2404.3,2404.1,0.05]
[1747639306890,10.242,2404.5,2404.1,0.05]
[1747639307090,14.40052289,2404.7,2404.1,4.20944308]
[1747639307371,5.64040138,2404.6,2404.1,4.20944308]
[1747639307710,1.48163406,2404.6,2404.1,0.05]
[1747639307876,4.15896815,2404.5,2404.1,0.05]
[1747639308211,4.15919042,2404.4,2404.1,0.05]
[1747639308383,0.41581771,2404.8,2404.2,1.3523]
[1747639308585,4.15874887,2404.6,2404.2,5.51161469]
[1747639308789,5.34573837,2404.7,2404.3,4.15909166]
[1747639308991,5.34573837,2404.7,2404.2,5.51159632]
[1747639309188,4.15878159,2404.6,2404.2,1.3523]
[1747639309398,4.15878159,2404.6,2404.2,5.51166288]
[1747639309582,4.15892848,2404.5,2404.1,0.05]
[1747639309783,4.15911479,2404.4,2404.1,0.05]
[1747639310003,2.01592187,2404.6,2404.1,0.05]
[1747639310322,1.3973,2405.8,2404.5,1.4199]
[1747639310478,1.3973,2405.8,2404.8,5.57817826]
[1747639310687,4.15697166,2405.6,2405.1,4.15769111]
[1747639310884,4.15757122,2405.3,2404.8,1.4199]
[1747639311190,4.15680058,2405.7,2404.9,0.23222228]
[1747639311391,3.18671574,2405.7,2404.9,4.390262]
[1747639311720,3.18671574,2405.7,2404.9,0.23222228]
[1747639311888,4.15759857,2405.3,2404.9,0.23222228]
[1747639312318,4.15768246,2405.2,2404.9,0.23222228]
[1747639312517,4.15787167,2405.1,2404.9,0.23222228]
[1747639312721,4.15800415,2405.0,2404.9,0.23222228]
[1747639313031,10.232,2405.3,2405.0,0.23222228]
[1747639313197,4.15766209,2405.2,2405.0,0.23222228]
[1747639313400,4.15757749,2405.3,2405.0,0.23222228]
[1747639313784,4.15783127,2405.1,2405.0,0.23222228]
[1747639313984,4.15769668,2405.2,2405.0,0.23222228]
[1747639314182,10.228,2405.6,2405.0,0.23222228]
[1747639314385,1.48157157,2405.5,2405.1,4.15774618]
[1747639314925,4.15766305,2405.2,2405.0,1.4714]
[1747639315107,4.15741719,2405.4,2404.8,0.23222228]
[1747639315306,4.15767443,2405.2,2404.8,0.23222228]
[1747639315511,4.157743,2405.2,2404.8,0.23222228]
[1747639315915,4.15758546,2405.3,2404.8,4.39055531]
[1747639316114,4.15767553,2405.2,2404.8,0.23222228]
[1747639316313,4.15817705,2404.9,2404.8,0.23222228]
[1747639316624,2.0022578,2405.3,2404.8,0.23222228]
[1747639316837,14.38076457,2405.2,2404.8,0.23222228]
[1747639317044,10.223,2405.2,2404.9,4.15816105]
[1747639317210,10.223,2405.2,2404.8,4.39049556]
[1747639317405,2.0022578,2405.3,2404.8,4.39049556]
[1747639317406,6.15983443,2405.3,2404.8,0.23222228]
[1747639317607,4.15848743,2404.8,2404.6,1.3594]
[1747639317840,4.15869583,2404.6,2404.5,0.28852343]
[1747639318141,4.158619,2404.7,2404.5,0.28852343]
[1747639318303,14.37941561,2404.8,2404.5,0.28852343]
[1747639318706,1.3942,2405.1,2404.6,4.15862751]
[1747639319031,4.1581095,2405.0,2404.5,4.15876968]
[1747639319236,16.48856738,2405.1,2404.3,1.4767]
[1747639319420,15.09441155,2405.1,2404.6,4.15855234]
[1747639319614,10.93649386,2405.1,2404.3,1.4767]
[1747639319843,4.15800415,2405.0,2404.4,4.15894933]
[1747639320138,4.15835786,2404.8,2404.3,5.63583342]
[1747639320569,4.15866377,2404.7,2404.3,1.4767]
[1747639320747,4.1587117,2404.6,2404.3,1.4767]
[1747639321108,4.1586058,2404.7,2404.3,1.4767]
[1747639321525,4.15870183,2404.6,2404.3,1.4767]
[1747639321924,0.04826767,2404.5,2404.1,0.05]
[1747639322221,4.15938773,2404.2,2404.1,0.05]
[1747639323627,19.97615979,2404.2,2404.1,0.05]
[1747639323829,19.92789212,2404.2,2404.1,0.05]
[1747639324014,27.92789212,2404.2,2404.1,0.05]
[1747639324215,41.34560513,2404.2,2404.1,0.05]
[1747639324818,20.90160513,2404.2,2404.1,0.05]
[1747639325051,41.34460513,2404.2,2404.1,0.05]
[1747639325855,41.34260513,2404.2,2404.1,0.05]
[1747639326242,20.90160513,2404.2,2404.1,0.05]
[1747639326446,14.39638773,2404.2,2404.1,0.05]
[1747639326763,4.15938773,2404.2,2404.1,0.05]
[1747639326926,14.36538773,2404.2,2404.1,0.05]
[1747639327528,15.74498773,2404.2,2404.1,0.05]
[1747639328020,25.97998773,2404.2,2404.1,0.05]
[1747639328219,8.96702074,2404.2,2404.1,0.05]
[1747639328420,5.53898773,2404.2,2404.1,0.05]
[1747639328616,4.15938773,2404.2,2404.1,0.05]
[1747639328857,14.36238773,2404.2,2404.1,0.05]
[1747639330459,4.15938773,2404.2,2404.1,0.05]
[1747639330818,4.1593081,2404.3,2404.1,0.05]
[1747639331224,4.15938773,2404.2,2404.1,0.05]
[1747639332356,4.15931008,2404.3,2404.1,0.05]
[1747639332559,1.3533,2404.8,2404.1,4.2094481]
[1747639332856,4.15822247,2404.9,2404.3,4.15913925]
[1747639333056,10.196,2405.2,2404.4,4.20056624]
[1747639333226,4.15860053,2404.7,2404.2,5.51499865]
[1747639333425,4.15860053,2404.7,2404.3,4.15920438]
[1747639333826,4.15860053,2404.7,2404.2,1.3557]
[1747639334039,4.15860053,2404.7,2404.3,4.15920666]
[1747639334454,14.37910439,2405.3,2404.3,4.15921474]
[1747639334455,10.238,2405.3,2404.3,4.15921474]
[1747639334654,4.1579483,2405.1,2404.5,1.4419]
[1747639334857,4.1579483,2405.1,2404.6,4.15855515]
[1747639335059,4.1579483,2405.1,2404.5,5.6007107]
[1747639335233,4.1575319,2405.3,2404.5,5.60076377]
[1747639335555,4.15731323,2405.4,2404.9,5.56453255]
[1747639335862,11.6875,2405.7,2404.9,1.4065]
[1747639335863,4.15709929,2405.6,2404.9,1.4065]
[1747639336026,0.2133611,2406.3,2405.3,1.4465]
[1747639336224,1.3589,2406.7,2405.5,4.15708813]
[1747639336565,0.05,2406.9,2406.0,4.15625071]